fUST/lending_fUST_20250927
["ID","MTS","AMOUNT","RATE_DAILY","PERIOD"]
[387925732,1758940232278,-483.83,0.00031338,3]
[387925733,1758940232287,-241.92,0.00031338,3]
[387925734,1758940232296,-725.77,0.00031338,3]
[387925735,1758940232310,-13180.9230543,0.00031338,2]
[387925736,1758940232319,-2022.68111857,0.00031338,2]
[387925737,1758940232329,-158.954,0.00031347,29]
[387925738,1758940232339,-180.741,0.00031347,29]
[387925739,1758940232350,-26999.95413917,0.00031348,2]
[387925780,1758940238299,-343000.04586083,0.00031348,2]
[387925782,1758940238310,-500.0,0.00031373,5]
[387925784,1758940238322,-500.0,0.00031373,2]
[387925786,1758940238332,-501.78444652,0.00031373,5]
[387925788,1758940238342,-500.0,0.00031373,5]
[387925790,1758940238353,-500.0,0.00031373,5]
[387925792,1758940238363,-500.0,0.00031373,5]
[387925794,1758940238373,-500.60844692,0.00031373,5]
[387925796,1758940238383,-500.0,0.00031373,5]
[387925798,1758940238392,-500.0,0.00031373,5]
[387925800,1758940238401,-2647.25932726,0.0003138,2]
[387925802,1758940238411,-480.0,0.00031448,120]
[387925804,1758940238420,-1568.03543948,0.00031644,2]
[387925806,1758940238429,-241.85039905,0.00031878,2]
[387925808,1758940238438,-502.68454307,0.00031921,5]
[387925810,1758940238447,-504.68383736,0.00031921,2]
[387925812,1758940238457,-564.2945073,0.00031921,5]
[387925814,1758940238466,-1000.0,0.00031921,5]
[387925816,1758940238475,-1003.62054179,0.00031921,5]
[387925818,1758940238484,-190.28680251,0.00031921,5]
[387925820,1758940238494,-162.31049254,0.00031921,5]
[387925822,1758940238503,-319.8133253,0.00031965,30]
[387925824,1758940238512,-422.9872888,0.00031965,30]
[387925826,1758940238522,-585.0898729,0.00031965,30]
[387925828,1758940238531,-500.0,0.00031965,30]
[387925830,1758940238541,-189.99375905,0.00031994,2]
[387925832,1758940238550,-193.46062004,0.00031994,2]
[387925834,1758940238559,-249.96284279,0.00031994,2]
[387925836,1758940238569,-596.38407183,0.00031994,2]
[387925838,1758940238578,-166.93864257,0.00031994,2]
[387925840,1758940238588,-151.0,0.00031994,2]
[387925842,1758940238598,-500.0,0.00031994,2]
[387925844,1758940238607,-230.82272375,0.00031994,2]
[387925846,1758940238616,-151.0,0.00031994,2]
[387925848,1758940238626,-151.0,0.00031994,2]
[387925850,1758940238635,-151.0,0.00031994,2]
[387925852,1758940238644,-151.17647032,0.00031994,2]
[387925854,1758940238654,-151.46683434,0.00031994,2]
[387925856,1758940238663,-151.0,0.00031994,2]
[387925858,1758940238673,-151.0,0.00031994,2]
[387925860,1758940238682,-151.0,0.00031994,2]
[387925862,1758940238691,-152.31519665,0.00031994,2]
[387925864,1758940238700,-151.31135269,0.00031994,2]
[387925866,1758940238709,-281.82430058,0.00031994,2]
[387925868,1758940238719,-151.15484948,0.00031994,2]
[387925870,1758940238729,-158.47727332,0.00031994,2]
[387925872,1758940238739,-151.0,0.00031994,2]
[387925874,1758940238748,-151.0,0.00031994,2]
[387925876,1758940238757,-151.0,0.00031994,2]
[387925878,1758940238767,-174.75882216,0.00032,120]
[387925880,1758940238776,-170.13491034,0.00032,30]
[387925882,1758940238786,-1568.03543948,0.00032014,2]
[387925884,1758940238795,-3862.55456922,0.00032014,2]
[387925886,1758940238804,-1102.96968048,0.00032053,2]
[387925888,1758940238813,-151.0,0.000321,19]
[387925890,1758940238822,-500.0,0.00032239,30]
[387925892,1758940238831,-151.0,0.00032268,2]
[387925894,1758940238841,-500.0,0.00032268,2]
[387925896,1758940238851,-152.8100736,0.00032268,2]
[387925898,1758940238860,-151.0,0.00032268,2]
[387925900,1758940238870,-153.16094079,0.00032268,2]
[387925902,1758940238880,-151.93305351,0.00032268,2]
[387925904,1758940238889,-151.0,0.00032268,2]
[387925906,1758940238899,-151.0,0.00032268,2]
[387925908,1758940238908,-151.0,0.00032268,2]
[387925910,1758940238917,-151.0,0.00032268,2]
[387925912,1758940238927,-174.75882216,0.000323,120]
[387925914,1758940238937,-151.0,0.000323,14]
[387925916,1758940238946,-1568.03543948,0.00032385,2]
[387925918,1758940238955,-299.27980241,0.0003239,2]
[387925920,1758940238965,-153.65506528,0.0003239,2]
[387925922,1758940238974,-152.41683478,0.0003239,2]
[387925924,1758940238983,-500.0,0.0003239,2]
[387925926,1758940238992,-151.42718219,0.0003239,2]
[387925928,1758940239002,-168.0,0.0003239,2]
[387925930,1758940239011,-151.0,0.000324,14]
[387925932,1758940239020,-168.0,0.00032466,2]
[387925934,1758940239029,-1500.0,0.00032468,5]
[387925936,1758940239038,-168.0,0.00032483,2]
[387925938,1758940239047,-160.0,0.000325,2]
[387925940,1758940239057,-500.0,0.00032513,30]
[387925942,1758940239066,-199.9597015,0.00032542,2]
[387925944,1758940239075,-500.0,0.00032542,2]
[387925946,1758940239084,-152.1468568,0.00032542,2]
[387925948,1758940239094,-151.0,0.00032542,2]
[387925950,1758940239103,-218.67120861,0.00032542,2]
[387925952,1758940239113,-151.0,0.00032542,2]
[387925954,1758940239122,-216.55343378,0.00032542,2]
[387925956,1758940239131,-302.42545213,0.0003256,30]
[387925958,1758940239141,-2250.80333702,0.0003256,30]
[387925960,1758940239150,-174.75882216,0.000326,120]
[387925962,1758940239159,-151.0,0.000326,12]
[387925964,1758940239168,-3182.1349233,0.00032658,2]
[387925966,1758940239177,-5163.0793286,0.00032661,2]
[387925968,1758940239187,-500.0,0.00032664,2]
[387925970,1758940239197,-168.0,0.00032697,2]
[387925972,1758940239206,-151.0,0.000327,13]
[387925974,1758940239216,-151.0,0.000327,13]
[387925976,1758940239225,-967.66,0.00032708,3]
[387925979,1758940239235,-483.84,0.00032708,3]
[387925980,1758940239244,-151.0,0.00032744,2]
[387925982,1758940239253,-151.0,0.00032744,2]
[387925984,1758940239263,-1568.03543948,0.00032755,2]
[387925986,1758940239272,-176.86517181,0.00032755,2]
[387925988,1758940239283,-3862.55456922,0.00032755,2]
[387925991,1758940239293,-8722.36146658,0.00032755,2]
[387925993,1758940239303,-178.40850472,0.00032755,2]
[387925995,1758940239316,-368.92275438,0.00032777,3]
[387925996,1758940239325,-427.5344744,0.00032782,3]
[387925998,1758940239334,-500.0,0.00032787,30]
[387926001,1758940239344,-500.0,0.00032816,2]
[387926003,1758940239354,-249.41358826,0.00032816,2]
[387926005,1758940239364,-151.0,0.00032816,2]
[387926007,1758940239373,-1882.98900775,0.00032845,2]
[387926009,1758940239382,-288.95444551,0.00032845,2]
[387926010,1758940239393,-3443.58770032,0.00032854,60]
[387926013,1758940239403,-157.748,0.00032854,2]
[387926015,1758940239412,-164.92,0.00032854,2]
[387926017,1758940239421,-265.0,0.00032855,2]
[387926019,1758940239431,-8937.76306712,0.00032855,2]
[387926021,1758940239441,-151.0,0.00032855,7]
[387926023,1758940239451,-151.857887,0.00032855,7]
[387926024,1758940239461,-151.842893,0.00032855,7]
[387926026,1758940239470,-151.0,0.00032855,7]
[387926028,1758940239480,-151.0,0.00032855,7]
[387926031,1758940239489,-151.958453,0.00032855,7]
[387926032,1758940239499,-151.0,0.00032855,7]
[387926035,1758940239509,-151.994439,0.00032855,7]
[387926037,1758940239518,-151.0,0.00032855,7]
[387926039,1758940239527,-151.0,0.00032855,7]
[387926041,1758940239536,-164.886008,0.00032855,7]
[387926042,1758940239545,-153.214926,0.00032855,7]
[387926044,1758940239554,-151.0,0.00032855,7]
[387926046,1758940239564,-152.437398,0.00032855,7]
[387926048,1758940239573,-151.0,0.00032855,7]
[387926050,1758940239583,-151.0,0.00032855,7]
[387926052,1758940239592,-151.0,0.00032855,7]
[387926054,1758940239602,-151.0,0.00032855,7]
[387926056,1758940239612,-151.933273,0.00032855,7]
[387926058,1758940239621,-399.048748,0.00032855,7]
[387926060,1758940239631,-399.048748,0.00032855,7]
[387926062,1758940239641,-399.048748,0.00032855,7]
[387926064,1758940239651,-399.048748,0.00032855,7]
[387926066,1758940239660,-2114757.45696089,0.00032855,20]
[387926607,1758940246102,-167.060242,0.00032855,7]
[387926609,1758940246113,-151.0,0.00032855,7]
[387926611,1758940246123,-167.060242,0.00032855,7]
[387926613,1758940246132,-151.0,0.00032855,7]
[387926615,1758940246141,-167.060242,0.00032855,7]
[387926617,1758940246151,-167.060242,0.00032855,7]
[387926619,1758940246160,-1275.062186,0.00032855,20]
[387931817,1758940680250,150.47,0.00018981,2]
[387931818,1758940725138,1632.0,0.00025,2]
[387931819,1758940776483,160.0,0.00026296,2]
[387931820,1758940803710,501.69144514,0.000253,2]
[387931821,1758940915015,153.0,9e-07,2]
[387931826,1758941124266,300.0,0.000137,2]
[387931827,1758941126459,-182.5258603,0.00027343,2]
[387931828,1758941134127,-4.65384526,0.00027343,2]
[387931829,1758941134150,-1392.96284224,0.00027619,2]
[387931830,1758941136228,300.0,0.000137,2]
[387931831,1758941166940,2920.08309495,0.00026296,2]
[387931832,1758941220398,154.41378196,0.00025205,2]
[387931833,1758941220668,1360.64294915,0.00026165,16]
[387931834,1758941220934,-152.0,0.00026426,16]
[387931835,1758941222587,-227.69861352,0.00026426,16]
[387931836,1758941240085,-224.66278491,0.00026426,16]
[387931837,1758941240118,-588.22444157,0.00026426,16]
[387931838,1758941240139,-108.95715271,0.0002818,2]
[387931840,1758941321492,153.0,0.000262,2]
[387931841,1758941345095,-208.09872143,0.0002818,2]
[387931842,1758941345115,-2658.25558734,0.00028465,2]
[387931843,1758941353081,-104.08867668,0.00028465,2]
[387931844,1758941354076,75.52895853,0.00026296,2]
[387931845,1758941354099,589.56799422,0.00026296,2]
[387931846,1758941371261,-355.8089605,0.00029575,2]
[387931847,1758941371283,-157.62279583,0.00030113,15]
[387931848,1758941385048,860.55444726,0.0002,2]
[387931904,1758941438556,-663.0,0.0003,10]
[387931906,1758941438566,-160.0,0.0003,10]
[387931908,1758941438575,-20.39720417,0.00030113,15]
[387931910,1758941438584,-178.02843528,0.00030213,15]
[387931912,1758941438594,-214.152689,0.00030411,2]
[387931914,1758941438603,-513.0,0.00030859,2]
[387931916,1758941438612,-346.82,0.00031,3]
[387931918,1758941438621,-1287.51818974,0.00031179,2]
[387931920,1758941438630,-227.55472717,0.0003123,2]
[387931922,1758941438639,-400.0,0.00031236,2]
[387931924,1758941438650,-800.0,0.00031236,3]
[387931926,1758941438659,-646.16842368,0.00031237,2]
[387931927,1758941438668,-589.00932621,0.00031237,2]
[387931929,1758941438678,-458.0,0.00031237,2]
[387931931,1758941438687,-5690.2759714,0.00031238,2]
[387931933,1758941438697,-241.91,0.00031238,3]
[387931935,1758941438710,-725.77,0.00031238,3]
[387931938,1758941438720,-7343.65713018,0.00031238,2]
[387931940,1758941438730,-1126.92233748,0.00031238,2]
[387931941,1758941438739,-180.74192137,0.00031239,28]
[387931943,1758941438749,-156.793,0.00031239,28]
[387931945,1758941438758,-344508.07393663,0.00031248,2]
[387931947,1758941438767,-627.2141758,0.00031279,2]
[387931949,1758941438777,-250.0,0.00031433,2]
[387931951,1758941438787,-627.21417579,0.00031648,2]
[387931953,1758941438796,-753.28249218,0.00031884,2]
[387931955,1758941438806,-510.0,0.00031888,2]
[387931957,1758941438815,-1287.51818974,0.00031966,2]
[387931959,1758941438824,-173.98834473,0.0003199,2]
[387931961,1758941438834,-174.75882217,0.00032,120]
[387931963,1758941438843,-627.21417579,0.00032016,2]
[387931965,1758941438853,-160.0,0.00032137,2]
[387931967,1758941438862,-165.7184018,0.00032157,30]
[387931969,1758941438871,-151.0,0.000322,17]
[387931971,1758941438881,-351.13,0.00032207,2]
[387931973,1758941438890,-627.21417579,0.00032385,2]
[387931975,1758941438900,-151.0,0.000324,13]
[387931977,1758941438909,-151.0,0.000325,11]
[387931979,1758941438919,-348.22911607,0.00032542,2]
[387931981,1758941438928,-618.45491014,0.00032542,2]
[387931983,1758941438938,-300.48955663,0.00032542,2]
[387931985,1758941438947,-533.66945257,0.00032542,2]
[387931987,1758941438956,-500.0,0.00032602,120]
[387931989,1758941438966,-500.0,0.00032602,120]
[387931991,1758941438975,-500.0,0.00032602,120]
[387931993,1758941438984,-500.0,0.00032602,120]
[387931995,1758941438993,-500.0,0.00032602,120]
[387931997,1758941439002,-500.0,0.00032602,120]
[387931999,1758941439012,-443.58770032,0.00032602,120]
[387932000,1758941439021,-483.82,0.00032608,3]
[387932001,1758941439031,-260.0,0.00032685,2]
[387932002,1758941439040,-151.0,0.000327,18]
[387932003,1758941439049,-151.0,0.000327,14]
[387932004,1758941439059,-500.0,0.000327,18]
[387932005,1758941439068,-291.79687759,0.00032738,2]
[387932006,1758941439077,-1223.94285503,0.00032743,2]
[387932007,1758941439086,-187.82038958,0.00032743,2]
[387932008,1758941439096,-227.62817016,0.00032749,2]
[387932009,1758941439105,-178.40850472,0.00032753,2]
[387932011,1758941439114,-8722.36146658,0.00032753,2]
[387932013,1758941439123,-627.21417579,0.00032753,2]
[387932015,1758941439132,-176.86517181,0.00032753,2]
[387932017,1758941439141,-1287.51818974,0.00032753,2]
[387932019,1758941439150,-151.93305351,0.00032843,2]
[387932021,1758941439159,-151.0,0.00032843,2]
[387932023,1758941439170,-151.0,0.00032843,2]
[387932025,1758941439179,-151.0,0.00032843,2]
[387932027,1758941439188,-151.0,0.00032843,2]
[387932029,1758941439198,-200.58178861,0.00032852,10]
[387932031,1758941439207,-200.0,0.00032852,10]
[387932033,1758941439217,-160.91597898,0.00032852,10]
[387932035,1758941439226,-164.92,0.00032852,2]
[387932037,1758941439236,-8937.76306712,0.00032853,2]
[387932039,1758941439246,-151.0,0.00032853,2]
[387932040,1758941439255,-500.0,0.00032853,2]
[387932042,1758941439264,-152.8100736,0.00032853,2]
[387932044,1758941439274,-151.0,0.00032853,2]
[387932046,1758941439283,-153.16094079,0.00032853,2]
[387932048,1758941439293,-151.0,0.00032853,2]
[387932050,1758941439302,-151.0,0.00032853,2]
[387932052,1758941439311,-265.0,0.00032853,120]
[387932054,1758941439320,-780951.09400278,0.00032853,20]
[387932056,1758941439329,-150.0,0.00032853,30]
[387932058,1758941439338,-988781.31400932,0.00032853,20]
[387932471,1758941443458,-162.4,0.00032602,2]
[387932473,1758941443467,-141.6,0.00032853,20]
[387932488,1758941443598,-300.0,0.00032853,20]
[387933797,1758941457050,150.0,0.000249,2]
[387933802,1758941457089,228.95,0.000253,2]
[387941755,1758941708771,644.24822905,0.00026296,2]
[387941757,1758942103507,834.3094557,0.00026296,2]
[387941758,1758942126210,300.0,0.00026296,2]
[387941759,1758942150225,-251.06176789,0.000263,2]
[387941760,1758942161658,-48.93823211,0.000263,2]
[387941761,1758942161683,-103.06176789,0.000263,2]
[387941762,1758942191965,224.89410337,0.00023644,10]
[387941764,1758942241930,1975.0,0.00032851,60]
[387941765,1758942333309,160.0,0.00026296,2]
[387941767,1758942351156,160.0,0.00026296,2]
[387941769,1758942359086,-196.93823211,0.000263,2]
[387941770,1758942359106,-300.0,0.000263,2]
[387941771,1758942359127,-53.58917253,0.00026384,20]
[387941772,1758942366726,236.72565056,0.00026296,2]
[387941773,1758942374682,262.30419803,0.00026296,2]
[387941774,1758942393382,217.0,9e-07,2]
[387941775,1758942394430,217.0,9e-07,2]
[387941776,1758942432094,-127.41082747,0.00026384,20]
[387941777,1758942432115,-171.0,0.00029123,32]
[387941778,1758942432136,-151.58917253,0.00030112,15]
[387941779,1758942442110,-3.47082747,0.00030112,15]
[387941780,1758942442133,-219.0,0.0003093,2]
[387941781,1758942442153,-157.49654196,0.00030999,2]
[387941782,1758942442173,-1000.0,0.00031001,30]
[387941783,1758942442197,-217.0,0.00031099,2]
[387941784,1758942442217,-192.179274,0.00031188,2]
[387941785,1758942442242,-169.2628937,0.00031313,30]
[387941786,1758942443083,-165.4343832,0.00030977,120]
[387941787,1758942443103,-31.27355642,0.00031313,30]
[387941789,1758942515532,-304.85224945,0.0002629,2]
[387941790,1758942545083,-315.0,0.00026932,22]
[387941791,1758942545111,-93.81163329,0.00030112,15]
[387941805,1758942632483,-72.68836671,0.00030112,15]
[387941806,1758942632502,-166.5,0.00030212,15]
[387941807,1758942632512,-166.5,0.00030312,15]
[387941808,1758942632521,-166.5,0.00030412,15]
[387941809,1758942632530,-168.0,0.00030756,2]
[387941810,1758942632539,-168.0,0.00030806,7]
[387941811,1758942632548,-168.0,0.00030956,2]
[387941812,1758942632557,-168.0,0.00031231,2]
[387941813,1758942632566,-168.0,0.00031276,7]
[387941814,1758942632575,-168.0,0.00031313,7]
[387941815,1758942632584,-108.83472358,0.00031313,30]
[387941817,1758942632593,-168.0,0.00031594,2]
[387941819,1758942632602,-1156.0,0.00031665,2]
[387941821,1758942632611,-168.0,0.0003172,7]
[387941822,1758942632620,-2255.55891161,0.00031752,2]
[387941824,1758942632630,-217.0,0.00031752,2]
[387941825,1758942632639,-217.0,0.00031755,7]
[387941826,1758942632649,-168.0,0.0003176,2]
[387941827,1758942632658,-272.0,0.00031804,3]
[387941828,1758942632667,-300.0,0.00031804,3]
[387941830,1758942632676,-400.0,0.00031804,2]
[387941831,1758942632685,-182.0,0.00031804,3]
[387941832,1758942632694,-168.0,0.00031805,2]
[387941833,1758942632703,-168.0,0.00031859,2]
[387941835,1758942632713,-564.96186913,0.00031872,2]
[387941837,1758942632722,-160.0,0.00031886,2]
[387941839,1758942632731,-174.75882216,0.00032,120]
[387941841,1758942632740,-193.01241593,0.00032,120]
[387941843,1758942632749,-468.27235926,0.00032,120]
[387941845,1758942632758,-183.67613552,0.00032,120]
[387941846,1758942632768,-362.0,0.00032146,7]
[387941848,1758942632777,-174.75882216,0.000323,120]
[387941850,1758942632786,-468.27235926,0.000323,120]
[387941852,1758942632795,-168.0,0.00032368,2]
[387941854,1758942632805,-157.0,0.00032411,53]
[387941856,1758942632814,-260.0,0.00032434,2]
[387941858,1758942632824,-468.27235926,0.000326,120]
[387941860,1758942632843,-351.13,0.00032644,2]
[387941862,1758942632857,-827.22726036,0.00032652,2]
[387941864,1758942632866,-177.05429688,0.000327,2]
[387941866,1758942632876,-177.05429687,0.00032726,2]
[387941868,1758942632885,-530.41687571,0.00032732,2]
[387941870,1758942632894,-250.0,0.00032732,2]
[387941872,1758942632904,-250.0,0.00032732,2]
[387941874,1758942632913,-250.0,0.00032732,2]
[387941876,1758942632922,-250.0,0.00032732,2]
[387941878,1758942632932,-154.06585005,0.00032743,3]
[387941880,1758942632941,-279.33990606,0.00032743,3]
[387941881,1758942632950,-157.874,0.00032743,33]
[387941882,1758942632960,-422.20374608,0.00032744,2]
[387941883,1758942632969,-368.7814598,0.00032744,2]
[387941884,1758942632978,-500.0,0.0003275,120]
[387941885,1758942632987,-500.0,0.0003275,120]
[387941886,1758942632997,-500.0,0.00032751,2]
[387941887,1758942633006,-30269.73751135,0.00032751,2]
[387941888,1758942633016,-178.40850472,0.00032752,2]
[387941889,1758942633025,-1287.51818974,0.00032752,2]
[387941890,1758942633037,-5761.61962711,0.00032752,2]
[387941898,1758942638636,-158.64646737,0.00031998,2]
[387941899,1758942638645,-174.45038507,0.00031998,2]
[387941900,1758942638655,-116.58789253,0.00031998,2]
[387941901,1758942638846,-392.35275637,0.00031998,2]
[387941902,1758942638855,-2960.74183947,0.00032752,2]
[387941903,1758942638864,-177.05429687,0.00032752,2]
[387941904,1758942638873,-1254.42835158,0.00032752,2]
[387941905,1758942638883,-510.0,0.000328,20]
[387941906,1758942638892,-166.39,0.00032842,3]
[387941907,1758942638901,-499.19,0.00032842,3]
[387941908,1758942638910,-4000.0,0.00032848,4]
[387941909,1758942638919,-4000.0,0.00032848,4]
[387941910,1758942638928,-2000.0,0.00032849,4]
[387941911,1758942638938,-8000.0,0.0003285,4]
[387941912,1758942638947,-500.0,0.0003285,120]
[387941913,1758942638956,-500.0,0.0003285,120]
[387941914,1758942638965,-500.0,0.0003285,120]
[387941915,1758942638974,-500.0,0.0003285,120]
[387941916,1758942638983,-443.58770032,0.0003285,120]
[387941917,1758942638992,-151.0,0.0003285,60]
[387941918,1758942639001,-151.0,0.0003285,60]
[387941919,1758942639011,-500.0,0.0003285,60]
[387941920,1758942639020,-151.0,0.0003285,60]
[387941921,1758942639029,-152.8100736,0.0003285,60]
[387941922,1758942639042,-151.0,0.0003285,60]
[387941923,1758942639051,-153.16094079,0.0003285,60]
[387941924,1758942639060,-151.93305351,0.0003285,60]
[387941925,1758942639070,-151.0,0.0003285,2]
[387941926,1758942639081,-151.0,0.0003285,60]
[387941927,1758942639090,-151.0,0.0003285,60]
[387941928,1758942639099,-151.0,0.0003285,60]
[387941929,1758942639111,-200.0,0.0003285,10]
[387941930,1758942639120,-200.0,0.0003285,10]
[387941931,1758942639129,-1409.093301,0.00032851,2]
[387941932,1758942639139,-160.91597898,0.00032851,10]
[387941933,1758942639148,-164.92,0.00032851,2]
[387941934,1758942639157,-8937.76306712,0.00032852,2]
[387941935,1758942639167,-152.10436512,0.00032852,20]
[387941936,1758942639177,-247.04362986,0.00032852,20]
[387941937,1758942639186,-152.03059249,0.00032852,20]
[387941938,1758942639196,-151.90551112,0.00032852,20]
[387941939,1758942639206,-151.0,0.00032852,20]
[387941940,1758942639215,-151.44785783,0.00032852,20]
[387941941,1758942639224,-500.0,0.00032852,20]
[387941942,1758942639233,-152.02404313,0.00032852,20]
[387941943,1758942639242,-151.64425791,0.00032852,20]
[387941944,1758942639251,-265.0,0.00032852,120]
[387941945,1758942639261,-1761406.10201016,0.00032852,20]
[387941946,1758942639474,-1904.15238618,0.00032852,20]
[387942537,1758942645586,-44.6344081,0.00032752,2]
[387946909,1758942690258,173.3657568,0.00028139,6]
[387946914,1758942690310,173.3657568,0.00028703,11]
[387946973,1758942691004,173.3657568,0.00027576,2]
[387947616,1758943257717,6417.787,0.00026296,2]
[387947617,1758943267487,572.83156897,0.00026296,2]
[387947618,1758943275904,3009.39143103,0.00026296,2]
[387947619,1758943275927,1990.60856897,0.00026296,2]
[387947620,1758943284491,645.53723375,0.00026296,2]
[387947621,1758943292752,4863.9382606,0.00026296,2]
[387947622,1758943301431,2499.92593668,0.00026296,2]
[387947623,1758943301454,2467.96991432,0.00026296,2]
[387947624,1758943317068,304.75349527,0.00026296,2]
[387947625,1758943325749,4652.34055045,0.00026296,2]
[387947626,1758943334853,2328.39114332,0.00026296,2]
[387947627,1758943342712,246.55489664,0.00026296,2]
[387947628,1758943342734,2620.41352439,0.00026296,2]
[387947629,1758943351039,4493.61405296,0.00026296,2]
[387947630,1758943366653,2568.92366972,0.00026296,2]
[387947631,1758943374761,317.05875293,0.00026296,2]
[387947632,1758943374783,914.0862715,0.00026296,2]
[387947633,1758943383270,334.2994557,0.00026296,2]
[387947634,1758943391635,2431.08633028,0.00026296,2]
[387947635,1758943403117,2165.47838028,0.00026296,2]
[387947636,1758943418804,1904.20525775,0.00026296,2]
[387947637,1758943440299,269.73210003,0.00025205,2]
[387947638,1758943441792,440.80523467,0.00026296,2]
[387947639,1758943453460,181.0,0.00023123,9]
[387947640,1758943457854,3000.0,0.00032852,120]
[387947641,1758943531464,264.03,0.000249,2]
[387947642,1758943552072,-300.0,0.000263,2]
[387947643,1758943552092,-300.0,0.000263,2]
[387947644,1758943552112,-247.71826187,0.000263,2]
[387947654,1758943578497,2000.0,0.00032852,120]
[387947657,1758943636084,-300.0,0.00026299,2]
[387947658,1758943636110,-300.0,0.000263,2]
[387947659,1758943636134,-300.0,0.000263,2]
[387947660,1758943636157,-300.0,0.000263,2]
[387947661,1758943636182,-300.0,0.000263,2]
[387947662,1758943636206,-300.0,0.000263,2]
[387947663,1758943636232,-300.0,0.000263,2]
[387947664,1758943636255,-300.0,0.000263,2]
[387947665,1758943636281,-420.0,0.00028453,2]
[387947666,1758943636305,-173.3657568,0.00029266,16]
[387947667,1758943636328,-300.0,0.000296,2]
[387947668,1758943636351,-300.0,0.000296,2]
[387947669,1758943636374,-300.0,0.000296,2]
[387947670,1758943636397,-157.0,0.00029699,36]
[387947671,1758943636425,-173.3657568,0.00029829,20]
[387947672,1758943636452,-173.3657568,0.00029829,20]
[387947673,1758943636476,-178.22,0.00030112,15]
[387947674,1758943636500,-795.995844,0.00030145,30]
[387947675,1758943636523,-178.22,0.00030212,15]
[387947676,1758943636547,-178.22,0.00030312,15]
[387947677,1758943636570,-178.22894149,0.00030412,15]
[387947678,1758943636594,-587.0,0.00030783,2]
[387947679,1758943636618,-501.80948246,0.00031543,2]
[387947680,1758943636641,-500.0,0.00031543,2]
[387947681,1758943636664,-1600.0,0.00031543,3]
[387947682,1758943636687,-1057.12843482,0.00031544,36]
[387947686,1758943669078,252.66510701,0.000209,2]
[387947687,1758943673190,3529.83651492,0.00018,2]
[387947690,1758943694788,561.69861472,0.000125,2]
[387947691,1758943696813,307.66130285,0.00018,2]
[387947692,1758943701033,273.10067795,0.00021,2]
[387947693,1758943708710,2045.49557296,0.00025,3]
[387947694,1758943715382,1873.98487489,0.00015,2]
[387947695,1758943715404,574.62588864,0.00015,2]
[387947697,1758943717953,650.27794697,0.00018,2]
[387947701,1758943721695,212.77725852,0.00016,2]
[387947702,1758943721727,663.95392898,0.000245,2]
[387947704,1758943723716,2330.96901209,0.000215,2]
[387947705,1758943725359,161.0,0.00026,5]
[387947706,1758943750083,-727.2298736,0.00028465,2]
[387947707,1758943750103,-150.40372041,0.000295,120]
[387947708,1758943764070,-156.8,0.0003,60]
[387947709,1758943778582,628.0,0.00032852,120]
[387947719,1758943831724,-724.42239972,0.0003,60]
[387947720,1758943831733,-300.0,0.0003,2]
[387947721,1758943831743,-300.0,0.0003,2]
[387947722,1758943831752,-300.0,0.0003,2]
[387947723,1758943831762,-250.0,0.00031433,2]
[387947724,1758943831771,-2813.4560119,0.00031442,36]
[387947725,1758943831780,-192.1792741,0.00031682,2]
[387947726,1758943831789,-423.72140185,0.00031867,2]
[387947727,1758943831799,-187.30894371,0.00032,120]